[Event "23rd ETCC Women 2021"]
[Site "Catez"]
[Date "2021.11.19"]
[Round "6.25"]
[White "Sebag, Marie"]
[Black "Injac, Teodora"]
[Result "1/2-1/2"]
[ECO "C88"]
[WhiteElo "2447"]
[BlackElo "2387"]
[Annotator "ChessBase"]
[PlyCount "87"]
[EventDate "2021.11.08"]
[EventType "team-tourn"]
[EventCountry "SLO"]
[WhiteTeam "France"]
[BlackTeam "Serbia"]
[WhiteTeamCountry "FRA"]
[BlackTeamCountry "SRB"]
[TimeControl "40/5400+30:1800+30"]

1. e4 {[%emt 0:00:07]} e5 {[%emt 0:00:07]} 2. Nf3 {[%emt 0:00:05]} Nc6 {
[%emt 0:00:05]} 3. Bb5 {[%emt 0:00:03]} a6 {[%emt 0:00:20]} 4. Ba4 {[%emt 0:00:
06]} Nf6 {[%emt 0:00:15]} 5. O-O {[%emt 0:00:10]} Be7 {[%emt 0:00:16]} 6. Re1 {
[%emt 0:00:55]} b5 {[%emt 0:00:51]} 7. Bb3 {[%emt 0:00:06]} O-O {[%emt 0:00:27]
} 8. a4 {[%emt 0:00:21]} Bb7 {[%emt 0:01:38]} 9. d3 {[%emt 0:00:49]} d6 {
[%emt 0:01:01]} 10. c3 {[%emt 0:06:47]} Na5 {[%emt 0:01:37]} 11. Ba2 {[%emt 0:
21:29]} c5 {[%emt 0:00:29]} 12. Nbd2 {[%emt 0:07:08]} Qc7 {[%emt 0:11:37]} 13.
Nf1 {[%emt 0:03:03]} c4 {[%emt 0:05:07]} 14. Bg5 {[%emt 0:06:28]} Rfd8 {
[%emt 0:11:53]} 15. axb5 {[%emt 0:24:28]} axb5 {[%emt 0:09:42]} 16. Bxf6 {
[%emt 0:02:35]} Bxf6 {[%emt 0:00:52]} 17. Ne3 {[%emt 0:00:10]} Ra6 {[%emt 0:08:
19]} 18. dxc4 {[%emt 0:01:04]} bxc4 {[%emt 0:00:18]} 19. Nd2 {[%emt 0:08:03]}
Bg5 {[%emt 0:07:42]} 20. Bxc4 {[%emt 0:02:44]} Nxc4 {[%emt 0:01:47]} 21. Nexc4
{[%emt 0:00:17]} d5 {[%emt 0:01:10]} 22. exd5 {[%emt 0:01:51]} Rxa1 {[%emt 0:
06:59]} 23. Qxa1 {[%emt 0:00:07]} Bxd5 {[%emt 0:01:07]} 24. b3 {[%emt 0:04:16]}
h6 {[%emt 0:04:09]} 25. Ne4 {[%emt 0:02:06]} Bxe4 {[%emt 0:13:00]} 26. Rxe4 {
[%emt 0:00:07]} Qb7 {[%emt 0:00:01]} 27. Re1 {[%emt 0:02:32]} Qxb3 {[%emt 0:00:
17]} 28. Nxe5 {[%emt 0:01:03]} Bf6 {[%emt 0:00:31]} 29. f4 {[%emt 0:02:38]} Rc8
{[%emt 0:08:51]} 30. Qa7 {[%emt 0:00:57]} Bxe5 {[%emt 0:01:46]} 31. fxe5 {
[%emt 0:00:12]} Qxc3 {[%emt 0:00:42]} 32. Qe3 {[%emt 0:00:17]} Qxe3+ {[%emt 0:
00:23]} 33. Rxe3 {[%emt 0:00:04]} Kf8 {[%emt 0:00:12]} 34. Kf2 {[%emt 0:00:51]}
Ke7 {[%emt 0:00:18]} 35. Kf3 {[%emt 0:01:04]} Rc2 {[%emt 0:00:45]} 36. h4 {
[%emt 0:00:22]} h5 {[%emt 0:01:03]} 37. g3 {[%emt 0:01:19]} Ke6 {[%emt 0:00:31]
} 38. Re4 {[%emt 0:00:53]} Rc1 {[%emt 0:01:44]} 39. Ra4 {[%emt 0:00:20]} Rf1+ {
[%emt 0:00:51]} 40. Ke4 {[%emt 0:00:14]} Re1+ {[%emt 0:00:27]} 41. Kf4 {
[%emt 0:30:06]} Rf1+ {[%emt 0:30:50]} 42. Ke4 {[%emt 0:00:06]} Re1+ {[%emt 0:
00:08]} 43. Kf4 {[%emt 0:00:03]} Rf1+ {[%emt 0:00:04]} 44. Ke4 {[%emt 0:00:02]}
1/2-1/2

[Event "23rd ETCC Women 2021"]
[Site "Catez"]
[Date "2021.11.19"]
[Round "6.27"]
[White "Milliet, Sophie"]
[Black "Manakova, Maria"]
[Result "1-0"]
[ECO "B30"]
[WhiteElo "2418"]
[BlackElo "2289"]
[Annotator "ChessBase"]
[PlyCount "125"]
[EventDate "2021.11.08"]
[EventType "team-tourn"]
[EventCountry "SLO"]
[WhiteTeam "France"]
[BlackTeam "Serbia"]
[WhiteTeamCountry "FRA"]
[BlackTeamCountry "SRB"]
[TimeControl "40/5400+30:1800+30"]

1. e4 {[%emt 0:00:04]} c5 {[%emt 0:00:04]} 2. Nf3 {[%emt 0:00:04]} Nc6 {
[%emt 0:00:05]} 3. Bb5 {[%emt 0:00:07]} e6 {[%emt 0:00:26]} 4. O-O {[%emt 0:01:
17]} Nge7 {[%emt 0:00:08]} 5. c3 {[%emt 0:00:09]} a6 {[%emt 0:00:12]} 6. Ba4 {
[%emt 0:00:08]} b5 {[%emt 0:01:33]} 7. Bc2 {[%emt 0:00:07]} d5 {[%emt 0:03:22]}
8. d4 {[%emt 0:01:33]} cxd4 {[%emt 0:01:00]} 9. a4 {[%emt 0:00:19]} b4 {
[%emt 0:04:28]} 10. cxd4 {[%emt 0:00:30]} dxe4 {[%emt 0:08:32]} 11. Bxe4 {
[%emt 0:00:05]} Nd5 {[%emt 0:00:47]} 12. Bg5 {[%emt 0:00:42]} Be7 {[%emt 0:01:
06]} 13. Bxe7 {[%emt 0:00:09]} Ncxe7 {[%emt 0:01:02]} 14. Nbd2 {[%emt 0:06:13]}
Bb7 {[%emt 0:12:20]} 15. Nb3 {[%emt 0:25:11]} Ng6 {[%emt 0:25:03]} 16. Nc5 {
[%emt 0:00:47]} Qe7 {[%emt 0:00:19]} 17. Re1 {[%emt 0:04:50]} O-O {[%emt 0:00:
52]} 18. Qd2 {[%emt 0:08:56]} Rfd8 {[%emt 0:02:13]} 19. h4 {[%emt 0:12:09]} Ra7
{[%emt 0:02:25]} 20. g3 {[%emt 0:00:45]} Qd6 {[%emt 0:06:24]} 21. Ng5 {[%emt 0:
09:34]} Nf8 {[%emt 0:00:44]} 22. Qc2 {[%emt 0:04:20]} g6 {[%emt 0:01:26]} 23.
Bg2 {[%emt 0:02:37]} Ba8 {[%emt 0:00:51]} 24. Nge4 {[%emt 0:02:14]} Qe7 {
[%emt 0:00:49]} 25. Rad1 {[%emt 0:04:12]} a5 {[%emt 0:01:45]} 26. Qc1 {[%emt 0:
03:55]} Nf6 {[%emt 0:04:54]} 27. Qf4 {[%emt 0:11:24]} Nxe4 {[%emt 0:01:45]} 28.
Bxe4 {[%emt 0:00:00]} Bd5 {[%emt 0:07:45]} 29. h5 {[%emt 0:01:10]} gxh5 {
[%emt 0:10:16]} 30. Qh6 {[%emt 0:00:14]} Ng6 {[%emt 0:01:27]} 31. Qxh5 {
[%emt 0:00:27]} Qf6 {[%emt 0:00:49]} 32. Kg2 {[%emt 0:01:40]} Qg7 {[%emt 0:00:
06]} 33. Qg5 {[%emt 0:00:09]} Ne7 {[%emt 0:01:09]} 34. Qxg7+ {[%emt 0:00:31]}
Kxg7 {[%emt 0:00:05]} 35. f3 {[%emt 0:00:52]} Rd6 {[%emt 0:00:39]} 36. Kf2 {
[%emt 0:00:31]} h6 {[%emt 0:00:26]} 37. Ke3 {[%emt 0:00:23]} Rc7 {[%emt 0:00:
27]} 38. Rc1 {[%emt 0:00:10]} Rc8 {[%emt 0:00:20]} 39. g4 {[%emt 0:00:59]} Rcd8
{[%emt 0:00:11]} 40. Red1 {[%emt 0:00:21]} Kf6 {[%emt 0:01:39]} 41. Bd3 {
[%emt 0:22:38]} Kg7 {[%emt 0:02:07]} 42. Bb5 {[%emt 0:00:34]} Ng6 {[%emt 0:06:
40]} 43. Be2 {[%emt 0:06:02]} Nh4 {[%emt 0:05:20]} 44. Ne4 {[%emt 0:01:29]}
R6d7 {[%emt 0:09:29]} 45. Bb5 {[%emt 0:00:49]} Re7 {[%emt 0:00:14]} 46. Kf2 {
[%emt 0:01:32]} Nxf3 {[%emt 0:02:24]} 47. Kxf3 {[%emt 0:00:19]} f5 {[%emt 0:00:
03]} 48. Bd3 {[%emt 0:00:07]} fxe4+ {[%emt 0:00:34]} 49. Bxe4 {[%emt 0:00:04]}
Bb3 {[%emt 0:01:32]} 50. Rd2 {[%emt 0:00:20]} Ra7 {[%emt 0:04:11]} 51. Rc6 {
[%emt 0:01:30]} Kf7 {[%emt 0:01:53]} 52. d5 {[%emt 0:00:42]} exd5 {[%emt 0:00:
39]} 53. Bf5 {[%emt 0:00:03]} Bxa4 {[%emt 0:00:48]} 54. Rxh6 {[%emt 0:00:04]}
Raa8 {[%emt 0:00:35]} 55. Rh7+ {[%emt 0:01:07]} Kf6 {[%emt 0:00:13]} 56. Kf4 {
[%emt 0:00:05]} Rg8 {[%emt 0:01:07]} 57. g5+ {[%emt 0:00:31]} Rxg5 {[%emt 0:00:
04]} 58. Rh6+ {[%emt 0:00:02]} Kg7 {[%emt 0:01:04]} 59. Kxg5 {[%emt 0:00:03]}
Be8 {[%emt 0:00:36]} 60. Rh7+ {[%emt 0:00:29]} Kg8 {[%emt 0:00:05]} 61. Rdh2 {
[%emt 0:00:16]} Kf8 {[%emt 0:00:54]} 62. Kf6 {[%emt 0:00:12]} Ra6+ {[%emt 0:00:
26]} 63. Be6 {[%emt 0:00:04]} 1-0

[Event "23rd ETCC Women 2021"]
[Site "Catez"]
[Date "2021.11.19"]
[Round "6.31"]
[White "Sandu, Mihaela"]
[Black "Shapir, Maya"]
[Result "1-0"]
[ECO "B45"]
[WhiteElo "2244"]
[BlackElo "2256"]
[Annotator "ChessBase"]
[PlyCount "109"]
[EventDate "2021.11.08"]
[EventType "team-tourn"]
[EventCountry "SLO"]
[WhiteTeam "Romania"]
[BlackTeam "Israel"]
[WhiteTeamCountry "ROU"]
[BlackTeamCountry "ISR"]
[TimeControl "40/5400+30:1800+30"]

1. e4 {[%emt 0:00:05]} c5 {[%emt 0:01:19]} 2. Nf3 {[%emt 0:00:04]} e6 {[%emt 0:
00:05]} 3. d4 {[%emt 0:00:05]} cxd4 {[%emt 0:00:08]} 4. Nxd4 {[%emt 0:00:02]}
Nf6 {[%emt 0:00:05]} 5. Nc3 {[%emt 0:00:06]} Nc6 {[%emt 0:00:03]} 6. Ndb5 {
[%emt 0:00:29]} Bb4 {[%emt 0:00:12]} 7. a3 {[%emt 0:00:12]} Bxc3+ {[%emt 0:00:
04]} 8. Nxc3 {[%emt 0:00:04]} d5 {[%emt 0:00:11]} 9. Bd3 {[%emt 0:00:19]} O-O {
[%emt 0:10:33]} 10. O-O {[%emt 0:03:45]} d4 {[%emt 0:01:46]} 11. Ne2 {[%emt 0:
00:11]} e5 {[%emt 0:02:28]} 12. h3 {[%emt 0:00:17]} Qd6 {[%emt 0:08:25]} 13.
Ng3 {[%emt 0:14:12]} Be6 {[%emt 0:09:25]} 14. f4 {[%emt 0:01:24]} exf4 {
[%emt 0:01:40]} 15. Rxf4 {[%emt 0:05:47]} Nd7 {[%emt 0:06:21]} 16. Qh5 {
[%emt 0:04:30]} Qe5 {[%emt 0:06:51]} 17. Nf5 {[%emt 0:14:33]} Bxf5 {[%emt 0:00:
20]} 18. exf5 {[%emt 0:04:48]} Nf6 {[%emt 0:18:45]} 19. Qh4 {[%emt 0:04:54]}
Rfe8 {[%emt 0:06:29]} 20. Bd2 {[%emt 0:00:07]} Qc5 {[%emt 0:00:19]} 21. Rf3 {
[%emt 0:01:52]} Kh8 {[%emt 0:05:45]} 22. Rg3 {[%emt 0:08:59]} Rg8 {[%emt 0:06:
38]} 23. Rf1 {[%emt 0:13:56]} Rae8 {[%emt 0:02:03]} 24. Bg5 {[%emt 0:05:10]}
Qd6 {[%emt 0:01:45]} 25. Rf4 {[%emt 0:00:21]} Re3 {[%emt 0:05:04]} 26. Bxf6 {
[%emt 0:02:40]} Qxf6 {[%emt 0:01:08]} 27. Qxf6 {[%emt 0:00:06]} gxf6 {[%emt 0:
00:14]} 28. Rxe3 {[%emt 0:00:11]} dxe3 {[%emt 0:00:04]} 29. Re4 {[%emt 0:00:07]
} Ne5 {[%emt 0:01:16]} 30. Rxe3 {[%emt 0:00:06]} Rg5 {[%emt 0:01:02]} 31. Be4 {
[%emt 0:00:55]} Nc4 {[%emt 0:00:36]} 32. Rc3 {[%emt 0:00:55]} Nd6 {[%emt 0:00:
29]} 33. Bd3 {[%emt 0:00:42]} Nxf5 {[%emt 0:00:42]} 34. Rc7 {[%emt 0:01:34]}
Nd6 {[%emt 0:01:55]} 35. c4 {[%emt 0:01:25]} Rg3 {[%emt 0:00:31]} 36. Bc2 {
[%emt 0:00:13]} b6 {[%emt 0:01:19]} 37. Kf2 {[%emt 0:01:20]} Rg5 {[%emt 0:00:
15]} 38. Bd3 {[%emt 0:02:36]} Rc5 {[%emt 0:02:08]} 39. Rxc5 {[%emt 0:06:39]}
bxc5 {[%emt 0:00:05]} 40. b4 {[%emt 0:00:05]} cxb4 {[%emt 0:01:25]} 41. axb4 {
[%emt 0:30:05]} Kg7 {[%emt 0:00:52]} 42. Ke3 {[%emt 0:00:00]} h5 {[%emt 0:01:
29]} 43. g3 {[%emt 0:00:00]} Kf8 {[%emt 0:00:35]} 44. c5 {[%emt 0:00:00]} Ne8 {
[%emt 0:03:24]} 45. Kd4 {[%emt 0:00:00]} Nc7 {[%emt 0:02:31]} 46. Be2 {[%emt 0:
00:00]} Ne6+ {[%emt 0:00:09]} 47. Kc4 {[%emt 0:00:00]} f5 {[%emt 0:01:48]} 48.
Bxh5 {[%emt 0:00:00]} f4 {[%emt 0:00:43]} 49. gxf4 {[%emt 0:00:00]} Nxf4 {
[%emt 0:00:05]} 50. Bg4 {[%emt 0:00:00]} Ke7 {[%emt 0:01:27]} 51. Kd4 {[%emt 0:
00:00]} Ng6 {[%emt 0:01:20]} 52. Kd5 {[%emt 0:00:00]} Kd8 {[%emt 0:04:59]} 53.
Kd6 {[%emt 0:00:00]} Ne7 {[%emt 0:00:23]} 54. c6 {[%emt 0:00:00]} f5 {[%emt 0:
00:03]} 55. c7+ {[%emt 0:00:00]} 1-0

[Event "23rd ETCC Women 2021"]
[Site "Catez"]
[Date "2021.11.19"]
[Round "6.33"]
[White "Peng, Zhaoqin"]
[Black "Cramling, Pia"]
[Result "1/2-1/2"]
[ECO "E46"]
[WhiteElo "2351"]
[BlackElo "2457"]
[Annotator "ChessBase"]
[PlyCount "87"]
[EventDate "2021.11.08"]
[EventType "team-tourn"]
[EventCountry "SLO"]
[WhiteTeam "Netherlands"]
[BlackTeam "Sweden"]
[WhiteTeamCountry "NED"]
[BlackTeamCountry "SWE"]
[TimeControl "40/5400+30:1800+30"]

1. d4 {[%emt 0:00:06]} Nf6 {[%emt 0:00:06]} 2. c4 {[%emt 0:00:05]} e6 {[%emt 0:
00:06]} 3. Nc3 {[%emt 0:00:08]} Bb4 {[%emt 0:00:40]} 4. e3 {[%emt 0:00:08]} O-O
{[%emt 0:01:14]} 5. Nge2 {[%emt 0:00:14]} d5 {[%emt 0:02:30]} 6. a3 {[%emt 0:
00:17]} Be7 {[%emt 0:00:08]} 7. Ng3 {[%emt 0:01:41]} Re8 {[%emt 0:10:14]} 8.
Bd3 {[%emt 0:01:38]} dxc4 {[%emt 0:04:57]} 9. Bxc4 {[%emt 0:00:11]} c5 {
[%emt 0:00:49]} 10. O-O {[%emt 0:11:12]} cxd4 {[%emt 0:05:42]} 11. exd4 {
[%emt 0:00:04]} Nbd7 {[%emt 0:06:37]} 12. Be3 {[%emt 0:29:19]} Nb6 {[%emt 0:01:
17]} 13. Ba2 {[%emt 0:01:38]} Bd7 {[%emt 0:02:06]} 14. Qd3 {[%emt 0:05:50]} Bc6
{[%emt 0:01:14]} 15. Rad1 {[%emt 0:01:44]} Nbd5 {[%emt 0:01:30]} 16. Nge4 {
[%emt 0:04:42]} Nxe4 {[%emt 0:04:32]} 17. Nxe4 {[%emt 0:00:55]} Rc8 {[%emt 0:
03:26]} 18. Rfe1 {[%emt 0:03:32]} b6 {[%emt 0:05:50]} 19. Bd2 {[%emt 0:04:58]}
f5 {[%emt 0:08:34]} 20. Nc3 {[%emt 0:02:18]} Bf6 {[%emt 0:02:01]} 21. Bxd5 {
[%emt 0:10:19]} Bxd5 {[%emt 0:00:06]} 22. Bf4 {[%emt 0:00:07]} Bb3 {[%emt 0:20:
02]} 23. Rd2 {[%emt 0:00:11]} Bc4 {[%emt 0:00:26]} 24. Qe3 {[%emt 0:02:49]} h6
{[%emt 0:01:18]} 25. h3 {[%emt 0:03:03]} Qd7 {[%emt 0:00:58]} 26. Be5 {[%emt 0:
01:05]} Bg5 {[%emt 0:00:22]} 27. Bf4 {[%emt 0:00:04]} Be7 {[%emt 0:01:44]} 28.
Qg3 {[%emt 0:01:50]} Kh7 {[%emt 0:00:06]} 29. Be5 {[%emt 0:00:19]} Bf8 {
[%emt 0:01:54]} 30. Red1 {[%emt 0:02:47]} Bb3 {[%emt 0:00:50]} 31. Re1 {
[%emt 0:00:01]} Bc4 {[%emt 0:00:30]} 32. Red1 {[%emt 0:00:10]} Qe7 {[%emt 0:05:
30]} 33. h4 {[%emt 0:02:53]} Red8 {[%emt 0:01:03]} 34. d5 {[%emt 0:03:07]} exd5
{[%emt 0:00:52]} 35. Nxd5 {[%emt 0:00:04]} Bxd5 {[%emt 0:00:40]} 36. Rxd5 {
[%emt 0:00:03]} Rxd5 {[%emt 0:00:44]} 37. Rxd5 {[%emt 0:00:01]} Rc4 {[%emt 0:
04:21]} 38. Rd4 {[%emt 0:05:21]} Rc5 {[%emt 0:01:48]} 39. Bf4 {[%emt 0:02:19]}
Qe6 {[%emt 0:01:25]} 40. Qe3 {[%emt 0:02:14]} Qxe3 {[%emt 0:01:31]} 41. Bxe3 {
[%emt 0:30:06]} Rc7 {[%emt 0:09:44]} 42. h5 {[%emt 0:00:00]} Be7 {[%emt 0:01:
53]} 43. Rd5 {[%emt 0:00:00]} Bf6 {[%emt 0:01:27]} 44. b3 {[%emt 0:00:00]}
1/2-1/2

[Event "23rd ETCC Women 2021"]
[Site "Catez"]
[Date "2021.11.19"]
[Round "6.34"]
[White "Agrest, Inna"]
[Black "Roebers, Eline"]
[Result "0-1"]
[ECO "B33"]
[WhiteElo "2258"]
[BlackElo "2304"]
[Annotator "ChessBase"]
[PlyCount "116"]
[EventDate "2021.11.08"]
[EventType "team-tourn"]
[EventCountry "SLO"]
[WhiteTeam "Sweden"]
[BlackTeam "Netherlands"]
[WhiteTeamCountry "SWE"]
[BlackTeamCountry "NED"]
[TimeControl "40/5400+30:1800+30"]

1. e4 {[%emt 0:00:03]} c5 {[%emt 0:00:30]} 2. Nf3 {[%emt 0:00:11]} Nc6 {
[%emt 0:00:21]} 3. d4 {[%emt 0:00:16]} cxd4 {[%emt 0:00:10]} 4. Nxd4 {[%emt 0:
00:02]} Nf6 {[%emt 0:00:24]} 5. Nc3 {[%emt 0:00:20]} e5 {[%emt 0:00:40]} 6.
Ndb5 {[%emt 0:00:53]} d6 {[%emt 0:00:08]} 7. Bg5 {[%emt 0:00:41]} a6 {[%emt 0:
00:18]} 8. Na3 {[%emt 0:00:22]} b5 {[%emt 0:00:09]} 9. Nd5 {[%emt 0:02:29]} Be7
{[%emt 0:00:09]} 10. Nxe7 {[%emt 0:02:22]} Qxe7 {[%emt 0:00:07]} 11. c4 {
[%emt 0:04:39]} O-O {[%emt 0:01:27]} 12. Be2 {[%emt 0:03:21]} h6 {[%emt 0:19:
39]} 13. Be3 {[%emt 0:14:05]} Bb7 {[%emt 0:14:04]} 14. O-O {[%emt 0:07:14]} b4
{[%emt 0:05:03]} 15. Nc2 {[%emt 0:00:49]} Nxe4 {[%emt 0:03:24]} 16. Bf3 {
[%emt 0:09:06]} Nf6 {[%emt 0:01:58]} 17. Bxc6 {[%emt 0:06:54]} Bxc6 {[%emt 0:
00:05]} 18. Nxb4 {[%emt 0:01:02]} Bb7 {[%emt 0:00:42]} 19. Rc1 {[%emt 0:05:21]}
Rfc8 {[%emt 0:04:00]} 20. a3 {[%emt 0:13:27]} a5 {[%emt 0:02:44]} 21. Nd5 {
[%emt 0:07:17]} Bxd5 {[%emt 0:02:57]} 22. cxd5 {[%emt 0:00:05]} Qb7 {[%emt 0:
02:22]} 23. Rxc8+ {[%emt 0:08:04]} Rxc8 {[%emt 0:00:52]} 24. Qa4 {[%emt 0:05:
54]} Qxd5 {[%emt 0:16:08]} 25. Rd1 {[%emt 0:01:23]} Qe6 {[%emt 0:01:41]} 26.
Qxa5 {[%emt 0:01:19]} d5 {[%emt 0:00:44]} 27. Re1 {[%emt 0:01:28]} Rc2 {
[%emt 0:02:13]} 28. h3 {[%emt 0:01:36]} Qc8 {[%emt 0:02:22]} 29. Bb6 {[%emt 0:
03:25]} Nd7 {[%emt 0:10:11]} 30. Be3 {[%emt 0:00:39]} d4 {[%emt 0:01:15]} 31.
Bd2 {[%emt 0:00:19]} Rxb2 {[%emt 0:00:39]} 32. Rc1 {[%emt 0:00:28]} Qb8 {
[%emt 0:01:46]} 33. Bb4 {[%emt 0:00:18]} Qb6 {[%emt 0:03:49]} 34. Qd5 {[%emt 0:
00:36]} Qf6 {[%emt 0:01:53]} 35. Be1 {[%emt 0:00:49]} Nb6 {[%emt 0:01:02]} 36.
Qe4 {[%emt 0:00:17]} Qg5 {[%emt 0:00:54]} 37. Rc6 {[%emt 0:00:30]} Qe7 {
[%emt 0:00:53]} 38. Bb4 {[%emt 0:00:45]} Qb7 {[%emt 0:00:47]} 39. Qf3 {[%emt 0:
00:16]} f5 {[%emt 0:00:49]} 40. Re6 {[%emt 0:00:51]} Rb1+ {[%emt 0:00:32]} 41.
Kh2 {[%emt 0:30:08]} Qxf3 {[%emt 0:30:32]} 42. gxf3 {[%emt 0:00:04]} Nc4 {
[%emt 0:00:35]} 43. Rc6 {[%emt 0:00:00]} Nb2 {[%emt 0:00:00]} 44. f4 {[%emt 0:
00:00]} e4 {[%emt 0:00:00]} 45. Rd6 {[%emt 0:00:00]} d3 {[%emt 0:00:00]} 46.
Rd5 {[%emt 0:00:00]} Nd1 {[%emt 0:00:00]} 47. Kg3 {[%emt 0:00:00]} Rb2 {
[%emt 0:00:00]} 48. Bc5 {[%emt 0:00:00]} Nc3 {[%emt 0:00:00]} 49. Rd8+ {
[%emt 0:00:00]} Kf7 {[%emt 0:00:00]} 50. Be3 {[%emt 0:00:00]} Ke7 {[%emt 0:00:
00]} 51. Rg8 {[%emt 0:01:03]} d2 {[%emt 0:00:00]} 52. Bxd2 {[%emt 0:00:46]}
Rxd2 {[%emt 0:00:00]} 53. Rxg7+ {[%emt 0:00:04]} Kf6 {[%emt 0:00:00]} 54. Ra7 {
[%emt 0:01:02]} Ne2+ {[%emt 0:00:00]} 55. Kh4 {[%emt 0:02:04]} Nxf4 {[%emt 0:
00:00]} 56. Ra6+ {[%emt 0:01:15]} Ne6 {[%emt 0:00:00]} 57. Kg3 {[%emt 0:00:13]}
Rd3+ {[%emt 0:00:00]} 58. Kg2 {[%emt 0:00:20]} Ke5 {[%emt 0:00:00]} 0-1

[Event "23rd ETCC Women 2021"]
[Site "Catez"]
[Date "2021.11.19"]
[Round "6.36"]
[White "Cramling Bellon, Anna"]
[Black "Lanchava, Tea"]
[Result "0-1"]
[ECO "A80"]
[WhiteElo "2035"]
[BlackElo "2215"]
[Annotator "ChessBase"]
[PlyCount "58"]
[EventDate "2021.11.08"]
[EventType "team-tourn"]
[EventCountry "SLO"]
[WhiteTeam "Sweden"]
[BlackTeam "Netherlands"]
[WhiteTeamCountry "SWE"]
[BlackTeamCountry "NED"]
[TimeControl "40/5400+30:1800+30"]

1. d4 {[%emt 0:00:04]} f5 {[%emt 0:00:26]} 2. Nc3 {[%emt 0:01:57]} Nf6 {
[%emt 0:00:38]} 3. Bg5 {[%emt 0:00:17]} d5 {[%emt 0:00:41]} 4. Nf3 {[%emt 0:00:
57]} e6 {[%emt 0:00:41]} 5. e3 {[%emt 0:01:11]} Be7 {[%emt 0:00:18]} 6. Bd3 {
[%emt 0:03:36]} O-O {[%emt 0:01:08]} 7. Qe2 {[%emt 0:07:34]} Ne4 {[%emt 0:05:
43]} 8. Bxe7 {[%emt 0:01:39]} Qxe7 {[%emt 0:00:08]} 9. Ne5 {[%emt 0:00:33]} Qb4
{[%emt 0:10:10]} 10. Bxe4 {[%emt 0:03:40]} Qxb2 {[%emt 0:00:36]} 11. O-O {
[%emt 0:01:17]} Qxc3 {[%emt 0:01:06]} 12. Bd3 {[%emt 0:03:57]} c5 {[%emt 0:02:
43]} 13. Qe1 {[%emt 0:24:39]} cxd4 {[%emt 0:06:10]} 14. Qxc3 {[%emt 0:00:10]}
dxc3 {[%emt 0:00:06]} 15. Rab1 {[%emt 0:00:06]} Nc6 {[%emt 0:00:24]} 16. Nxc6 {
[%emt 0:00:22]} bxc6 {[%emt 0:00:07]} 17. Rb3 {[%emt 0:00:15]} c5 {[%emt 0:00:
20]} 18. Bb5 {[%emt 0:04:25]} c4 {[%emt 0:04:38]} 19. Rbb1 {[%emt 0:04:44]} Rb8
{[%emt 0:06:59]} 20. a4 {[%emt 0:02:00]} Rf7 {[%emt 0:07:07]} 21. Bc6 {[%emt 0:
02:36]} Rb2 {[%emt 0:01:07]} 22. Rxb2 {[%emt 0:23:51]} cxb2 {[%emt 0:00:08]}
23. c3 {[%emt 0:00:03]} Rc7 {[%emt 0:00:18]} 24. Be8 {[%emt 0:01:57]} g6 {
[%emt 0:02:04]} 25. a5 {[%emt 0:00:32]} Rc5 {[%emt 0:00:33]} 26. Ba4 {[%emt 0:
04:59]} Rxa5 {[%emt 0:00:20]} 27. Bc2 {[%emt 0:00:03]} Bd7 {[%emt 0:02:00]} 28.
f3 {[%emt 0:02:00]} Ra1 {[%emt 0:01:49]} 29. Bb1 {[%emt 0:00:13]} a5 {[%emt 0:
00:26]} 0-1

[Event "23rd ETCC Women 2021"]
[Site "Catez"]
[Date "2021.11.19"]
[Round "6.40"]
[White "Richterova, Natasa"]
[Black "De Seroux, Camille"]
[Result "1-0"]
[ECO "A35"]
[WhiteElo "2185"]
[BlackElo "2125"]
[Annotator "ChessBase"]
[PlyCount "133"]
[EventDate "2021.11.08"]
[EventType "team-tourn"]
[EventCountry "SLO"]
[WhiteTeam "Czech Republic"]
[BlackTeam "Switzerland"]
[WhiteTeamCountry "CZE"]
[BlackTeamCountry "SUI"]
[TimeControl "40/5400+30:1800+30"]

1. Nf3 {[%emt 0:00:03]} c5 {[%emt 0:00:07]} 2. c4 {[%emt 0:00:05]} Nc6 {
[%emt 0:00:26]} 3. Nc3 {[%emt 0:00:07]} g6 {[%emt 0:00:17]} 4. e3 {[%emt 0:00:
34]} Nf6 {[%emt 0:07:55]} 5. d4 {[%emt 0:01:41]} cxd4 {[%emt 0:02:10]} 6. exd4
{[%emt 0:00:14]} d5 {[%emt 0:01:29]} 7. Bg5 {[%emt 0:00:15]} Ne4 {[%emt 0:11:
07]} 8. cxd5 {[%emt 0:00:35]} Nxc3 {[%emt 0:01:38]} 9. bxc3 {[%emt 0:00:02]}
Qxd5 {[%emt 0:01:30]} 10. Qb3 {[%emt 0:01:01]} Qxb3 {[%emt 0:18:39]} 11. axb3 {
[%emt 0:00:07]} Bg7 {[%emt 0:00:10]} 12. Bb5 {[%emt 0:02:11]} Bd7 {[%emt 0:03:
47]} 13. O-O {[%emt 0:02:16]} h6 {[%emt 0:02:12]} 14. Bd2 {[%emt 0:17:05]} e6 {
[%emt 0:05:10]} 15. Rfe1 {[%emt 0:06:42]} O-O {[%emt 0:00:56]} 16. Bf4 {
[%emt 0:08:29]} a6 {[%emt 0:03:22]} 17. Bd3 {[%emt 0:02:31]} Rac8 {[%emt 0:01:
30]} 18. Rac1 {[%emt 0:14:52]} Rfd8 {[%emt 0:03:30]} 19. Be4 {[%emt 0:13:41]}
g5 {[%emt 0:06:29]} 20. Bd6 {[%emt 0:07:13]} Na5 {[%emt 0:08:33]} 21. Nd2 {
[%emt 0:00:45]} Be8 {[%emt 0:04:55]} 22. Be7 {[%emt 0:02:16]} Rd7 {[%emt 0:00:
26]} 23. Bb4 {[%emt 0:00:56]} Nc6 {[%emt 0:01:16]} 24. Bc5 {[%emt 0:01:15]} f5
{[%emt 0:09:05]} 25. Bb1 {[%emt 0:01:40]} Ne5 {[%emt 0:03:36]} 26. Ba3 {
[%emt 0:04:28]} Bf7 {[%emt 0:00:37]} 27. Red1 {[%emt 0:01:29]} Ng6 {[%emt 0:01:
09]} 28. Nc4 {[%emt 0:00:45]} Nf4 {[%emt 0:01:04]} 29. Re1 {[%emt 0:00:08]} Rc6
{[%emt 0:00:36]} 30. Bb2 {[%emt 0:02:04]} Rd5 {[%emt 0:01:06]} 31. g3 {[%emt 0:
00:54]} Ng6 {[%emt 0:00:25]} 32. Ne3 {[%emt 0:00:16]} Rd8 {[%emt 0:00:25]} 33.
d5 {[%emt 0:01:55]} exd5 {[%emt 0:00:13]} 34. Nxf5 {[%emt 0:00:04]} Bf8 {
[%emt 0:00:38]} 35. Nd4 {[%emt 0:00:01]} Rb6 {[%emt 0:00:55]} 36. Bc2 {[%emt 0:
01:38]} Bg7 {[%emt 0:00:26]} 37. Nf5 {[%emt 0:01:34]} Bf8 {[%emt 0:00:06]} 38.
Rcd1 {[%emt 0:00:16]} Rc8 {[%emt 0:00:57]} 39. Ne3 {[%emt 0:01:40]} Ne5 {
[%emt 0:00:24]} 40. Kg2 {[%emt 0:02:42]} Nc4 {[%emt 0:00:34]} 41. bxc4 {
[%emt 0:33:50]} Rxb2 {[%emt 0:05:00]} 42. Bf5 {[%emt 0:00:00]} Rxc4 {[%emt 0:
10:17]} 43. Nxc4 {[%emt 0:00:00]} dxc4 {[%emt 0:00:06]} 44. Be6 {[%emt 0:00:00]
} Bxe6 {[%emt 0:07:23]} 45. Rxe6 {[%emt 0:00:00]} Bc5 {[%emt 0:03:32]} 46. Rxh6
{[%emt 0:00:00]} Rxf2+ {[%emt 0:03:14]} 47. Kh3 {[%emt 0:00:00]} Kg7 {[%emt 0:
01:18]} 48. Re6 {[%emt 0:00:00]} b6 {[%emt 0:01:00]} 49. Rd7+ {[%emt 0:00:00]}
Kf8 {[%emt 0:00:52]} 50. Rc6 {[%emt 0:00:00]} Rf7 {[%emt 0:01:52]} 51. Rxf7+ {
[%emt 0:00:00]} Kxf7 {[%emt 0:00:01]} 52. Kg4 {[%emt 0:00:00]} a5 {[%emt 0:00:
59]} 53. Kf5 {[%emt 0:00:00]} a4 {[%emt 0:00:34]} 54. Rc7+ {[%emt 0:00:00]} Ke8
{[%emt 0:00:45]} 55. Ke6 {[%emt 0:00:00]} Kd8 {[%emt 0:00:14]} 56. Ra7 {
[%emt 0:00:00]} a3 {[%emt 0:00:54]} 57. Kd5 {[%emt 0:00:00]} Kc8 {[%emt 0:00:
27]} 58. Kxc4 {[%emt 0:00:00]} g4 {[%emt 0:00:39]} 59. Kb3 {[%emt 0:00:00]} Bg1
{[%emt 0:00:30]} 60. Rg7 {[%emt 0:00:00]} Bxh2 {[%emt 0:00:22]} 61. Rxg4 {
[%emt 0:00:00]} Kd7 {[%emt 0:00:23]} 62. Rg6 {[%emt 0:00:00]} Bg1 {[%emt 0:00:
29]} 63. Kxa3 {[%emt 0:00:00]} Ke7 {[%emt 0:00:13]} 64. Kb4 {[%emt 0:00:00]}
Kf7 {[%emt 0:00:13]} 65. Rc6 {[%emt 0:00:00]} Bf2 {[%emt 0:00:14]} 66. g4 {
[%emt 0:00:00]} Be3 {[%emt 0:00:28]} 67. Kb5 {[%emt 0:00:00]} 1-0